fUSD/lending_fUSD_20250521
["ID","MTS","AMOUNT","RATE_DAILY","PERIOD"]
[361846849,1747836645667,-571.82,0.0003315,5]
[361846850,1747836645677,-420.0,0.0003315,5]
[361846851,1747836645688,-576.85,0.0003315,5]
[361846852,1747836645699,-420.0,0.0003315,5]
[361846853,1747836645709,-420.0,0.0003315,5]
[361846854,1747836645718,-633.72,0.0003315,5]
[361846855,1747836645729,-1474.84,0.0003315,5]
[361846856,1747836645739,-420.0,0.0003315,5]
[361846857,1747836645748,-420.0,0.0003315,5]
[361846858,1747836645758,-5124.57,0.0003315,5]
[361846859,1747836645769,-420.0,0.0003315,5]
[361846860,1747836645779,-420.0,0.0003315,5]
[361846861,1747836645789,-420.0,0.0003315,5]
[361846862,1747836645799,-420.0,0.0003315,5]
[361846863,1747836645808,-884.03,0.0003315,5]
[361846864,1747836645818,-420.0,0.0003315,5]
[361846865,1747836645828,-733.01,0.0003315,5]
[361846866,1747836645837,-2940.92,0.0003315,5]
[361846867,1747836645846,-561.69,0.0003315,5]
[361846868,1747836645857,-706.43,0.0003315,5]
[361846869,1747836645866,-439.0,0.0003315,5]
[361846870,1747836645876,-420.0,0.0003315,5]
[361846871,1747836645885,-420.0,0.0003315,5]
[361846872,1747836645895,-437.29,0.0003315,5]
[361846873,1747836645904,-2363.93,0.0003315,5]
[361846874,1747836645914,-151.0,0.0003315,7]
[361846875,1747836645924,-151.0,0.0003315,7]
[361846876,1747836645934,-151.0,0.0003315,7]
[361846877,1747836645944,-151.0,0.0003315,7]
[361846878,1747836645953,-420.0,0.0003315,5]
[361846879,1747836645963,-269.984783,0.0003315,7]
[361846880,1747836645973,-269.984783,0.0003315,7]
[361846881,1747836645983,-269.984783,0.0003315,7]
[361846882,1747836645993,-420.0,0.0003315,5]
[361846883,1747836646003,-269.984783,0.0003315,7]
[361846884,1747836646013,-269.984783,0.0003315,7]
[361846885,1747836646022,-269.984783,0.0003315,7]
[361846886,1747836646032,-809.9,0.0003315,5]
[361846887,1747836646042,-420.0,0.0003315,5]
[361846888,1747836646052,-218.67464678,0.0003315,5]
[361846889,1747836646062,-1395.76,0.0003315,5]
[361846890,1747836646072,-1141.93,0.0003315,5]
[361846891,1747836646082,-420.0,0.0003315,5]
[361846892,1747836646092,-940.45,0.0003315,5]
[361846893,1747836646102,-420.0,0.0003315,5]
[361846894,1747836646112,-151.0,0.0003315,7]
[361846895,1747836646122,-420.0,0.0003315,5]
[361846896,1747836646135,-151.0,0.0003315,7]
[361846897,1747836646145,-420.0,0.0003315,5]
[361846898,1747836646155,-676.97,0.0003315,5]
[361846899,1747836646164,-151.0,0.0003315,7]
[361846900,1747836646174,-420.0,0.0003315,5]
[361846901,1747836646184,-151.0,0.0003315,7]
[361846902,1747836646194,-420.0,0.0003315,5]
[361846903,1747836646204,-420.0,0.0003315,5]
[361846904,1747836646213,-151.0,0.0003315,7]
[361846905,1747836646223,-1076.55,0.0003315,5]
[361846906,1747836646233,-735.34,0.0003315,5]
[361846907,1747836646243,-678.92,0.0003315,5]
[361846908,1747836646256,-420.0,0.0003315,5]
[361846909,1747836646266,-420.0,0.0003315,5]
[361846910,1747836646276,-420.19,0.0003315,5]
[361846911,1747836646285,-420.0,0.0003315,5]
[361846912,1747836646295,-420.0,0.0003315,5]
[361846913,1747836646305,-420.0,0.0003315,5]
[361846914,1747836646314,-151.0,0.0003315,7]
[361846915,1747836646324,-290.48268,0.0003315,7]
[361846916,1747836646334,-420.0,0.0003315,5]
[361846917,1747836646344,-1506.0,0.0003315,5]
[361846918,1747836646354,-420.0,0.0003315,5]
[361846919,1747836646364,-2536.45,0.0003315,5]
[361846920,1747836646374,-420.0,0.0003315,5]
[361846921,1747836646388,-479.12,0.0003315,5]
[361846922,1747836646397,-420.0,0.0003315,5]
[361846923,1747836646407,-420.0,0.0003315,5]
[361846924,1747836646417,-420.0,0.0003315,5]
[361846925,1747836646426,-420.01,0.0003315,5]
[361846926,1747836646436,-3027.12,0.0003315,5]
[361846927,1747836646446,-471.5,0.0003315,5]
[361846928,1747836646457,-607.12,0.0003315,5]
[361846929,1747836646466,-420.0,0.0003315,5]
[361846930,1747836646475,-420.0,0.0003315,5]
[361846931,1747836646485,-420.0,0.0003315,5]
[361846932,1747836646494,-808.64,0.0003315,5]
[361846933,1747836646504,-610.75,0.0003315,5]
[361846934,1747836646513,-420.0,0.0003315,5]
[361846935,1747836646523,-1149.12,0.0003315,5]
[361846936,1747836646533,-449.94,0.0003315,5]
[361846937,1747836646543,-420.0,0.0003315,5]
[361846938,1747836646552,-420.0,0.0003315,5]
[361846939,1747836646562,-151.0,0.0003315,7]
[361846940,1747836646572,-151.0,0.0003315,7]
[361846941,1747836646581,-420.0,0.0003315,5]
[361846942,1747836646591,-151.0,0.0003315,7]
[361846943,1747836646602,-151.0,0.0003315,7]
[361846944,1747836646612,-420.0,0.0003315,5]
[361846945,1747836646621,-420.0,0.0003315,5]
[361846946,1747836646633,-151.0,0.0003315,7]
[361846947,1747836646642,-151.0,0.0003315,7]
[361846948,1747836646652,-224.85543,0.0003315,7]
[361846949,1747836646662,-420.0,0.0003315,5]
[361846950,1747836646672,-420.0,0.0003315,5]
[361846951,1747836646685,-151.0,0.0003315,7]
[361846952,1747836646697,-420.0,0.0003315,5]
[361846953,1747836646707,-971.03,0.0003315,5]
[361846954,1747836646717,-420.0,0.0003315,5]
[361846955,1747836646727,-420.0,0.0003315,5]
[361846956,1747836646737,-420.0,0.0003315,5]
[361846957,1747836646747,-221.1,0.0003315,5]
[361846958,1747836646757,-420.0,0.0003315,5]
[361846959,1747836646766,-160.814694,0.0003315,7]
[361846960,1747836646777,-420.0,0.0003315,5]
[361846961,1747836646786,-160.814694,0.0003315,7]
[361846962,1747836646797,-160.814694,0.0003315,7]
[361846963,1747836646807,-1502.38,0.0003315,5]
[361846964,1747836646816,-160.814694,0.0003315,7]
[361846965,1747836646826,-160.814694,0.0003315,7]
[361846966,1747836646836,-160.814694,0.0003315,7]
[361846967,1747836646846,-420.0,0.0003315,5]
[361846968,1747836646856,-690.360537,0.0003315,7]
[361846969,1747836646866,-690.360537,0.0003315,7]
[361846970,1747836646875,-690.360537,0.0003315,7]
[361846971,1747836646887,-690.360537,0.0003315,7]
[361846972,1747836646897,-420.0,0.0003315,5]
[361846973,1747836646907,-151.0,0.0003315,7]
[361846974,1747836646918,-179.767078,0.0003315,7]
[361846975,1747836646928,-690.360537,0.0003315,7]
[361846976,1747836646938,-690.360537,0.0003315,7]
[361846977,1747836646948,-690.360537,0.0003315,7]
[361846978,1747836646958,-690.360537,0.0003315,7]
[361846979,1747836646968,-151.0,0.0003315,7]
[361846980,1747836646978,-151.0,0.0003315,7]
[361846981,1747836646987,-165.169,0.0003315,7]
[361846982,1747836646997,-151.0,0.0003315,7]
[361846983,1747836647007,-165.169,0.0003315,7]
[361846984,1747836647017,-151.0,0.0003315,7]
[361846985,1747836647028,-165.169,0.0003315,7]
[361846986,1747836647038,-165.169,0.0003315,7]
[361846987,1747836647048,-165.169,0.0003315,7]
[361846988,1747836647058,-165.169,0.0003315,7]
[361846989,1747836647069,-165.169,0.0003315,7]
[361846990,1747836647079,-165.169,0.0003315,7]
[361846991,1747836647090,-674.62,0.0003315,5]
[361846992,1747836647100,-420.0,0.0003315,5]
[361846993,1747836647111,-1018.44,0.0003315,5]
[361846994,1747836647121,-151.0,0.0003315,7]
[361846995,1747836647132,-151.0,0.0003315,7]
[361846996,1747836647143,-1426.86,0.0003315,5]
[361846997,1747836647153,-420.0,0.0003315,5]
[361846998,1747836647163,-478.32,0.0003315,5]
[361846999,1747836647174,-420.0,0.0003315,5]
[361847000,1747836647184,-420.0,0.0003315,5]
[361847001,1747836647194,-1010.5,0.0003315,5]
[361847002,1747836647205,-420.0,0.0003315,5]
[361847003,1747836647215,-420.0,0.0003315,5]
[361847004,1747836647225,-835.0,0.0003315,5]
[361847005,1747836647235,-464.23001768,0.0003315,5]
[361847006,1747836647246,-420.0,0.0003315,5]
[361847007,1747836647256,-1740.92,0.0003315,5]
[361847008,1747836647267,-425.0,0.0003315,5]
[361847009,1747836647278,-2046.11,0.0003315,5]
[361847010,1747836647288,-420.0,0.0003315,5]
[361847011,1747836647298,-420.0,0.0003315,5]
[361847012,1747836647308,-420.0,0.0003315,5]
[361847013,1747836647319,-414.39602084,0.0003315,5]
[361847014,1747836647329,-311.8964132,0.0003315,5]
[361847015,1747836647338,-1382.88,0.0003315,5]
[361847016,1747836647349,-1172.65,0.0003315,5]
[361847017,1747836647359,-396.99,0.0003315,5]
[361847018,1747836647369,-420.0,0.0003315,5]
[361847019,1747836647379,-3264.92,0.0003315,5]
[361847020,1747836647389,-401.026926,0.0003315,7]
[361847021,1747836647399,-2626.44,0.0003315,5]
[361847022,1747836647409,-420.0,0.0003315,5]
[361847023,1747836647419,-420.0,0.0003315,5]
[361847024,1747836647429,-401.026926,0.0003315,7]
[361847025,1747836647439,-401.026926,0.0003315,7]
[361847026,1747836647450,-401.026926,0.0003315,7]
[361847027,1747836647461,-401.026926,0.0003315,7]
[361847028,1747836647471,-420.0,0.0003315,5]
[361847029,1747836647481,-151.0,0.0003315,7]
[361847030,1747836647491,-151.0,0.0003315,7]
[361847031,1747836647501,-151.0,0.0003315,7]
[361847032,1747836647511,-151.0,0.0003315,7]
[361847033,1747836647525,-937.01,0.0003315,5]
[361847034,1747836647542,-884.29,0.0003315,5]
[361847035,1747836647552,-420.0,0.0003315,5]
[361847036,1747836647562,-749.61,0.0003315,5]
[361847037,1747836647572,-1419.86,0.0003315,5]
[361847038,1747836647582,-420.0,0.0003315,5]
[361847039,1747836647592,-3679.54,0.0003315,5]
[361847040,1747836647602,-420.0,0.0003315,5]
[361847041,1747836647611,-420.0,0.0003315,5]
[361847042,1747836647621,-732.85,0.0003315,5]
[361847043,1747836647634,-715.92,0.0003315,5]
[361847044,1747836647644,-1133.19,0.0003315,5]
[361847045,1747836647654,-420.0,0.0003315,5]
[361847046,1747836647663,-420.0,0.0003315,5]
[361847047,1747836647674,-420.0,0.0003315,5]
[361847048,1747836647684,-12488.16,0.0003315,5]
[361847049,1747836647697,-420.0,0.0003315,5]
[361847050,1747836647707,-528.9,0.0003315,5]
[361847051,1747836647717,-11786.88,0.0003315,5]
[361847052,1747836647729,-6052.84,0.0003315,5]
[361847053,1747836647740,-420.0,0.0003315,5]
[361847054,1747836647750,-3883.45,0.0003315,5]
[361847055,1747836647760,-420.0,0.0003315,5]
[361847056,1747836647772,-420.0,0.0003315,5]
[361847057,1747836647782,-154.7623384,0.0003315,5]
[361847058,1747836647793,-12783.26,0.0003315,5]
[361847059,1747836647803,-420.0,0.0003315,5]
[361847060,1747836647814,-1450.35,0.0003315,5]
[361847061,1747836647825,-420.0,0.0003315,5]
[361847062,1747836647835,-661.35,0.0003315,5]
[361847063,1747836647845,-286.49,0.0003315,5]
[361847064,1747836647856,-420.0,0.0003315,5]
[361847065,1747836647866,-420.0,0.0003315,5]
[361847066,1747836647877,-420.0,0.0003315,5]
[361847067,1747836647889,-420.0,0.0003315,5]
[361847068,1747836648101,-989.53,0.0003315,5]
[361847069,1747836648126,-5781.11,0.0003315,5]
[361847070,1747836648138,-887.92,0.0003315,5]
[361847071,1747836648148,-997.43,0.0003315,5]
[361847072,1747836648158,-420.0,0.0003315,5]
[361847073,1747836648168,-420.0,0.0003315,5]
[361847074,1747836648179,-463.51,0.0003315,5]
[361847075,1747836648189,-1732.37,0.0003315,5]
[361847076,1747836648199,-13310.74,0.0003315,5]
[361847077,1747836648209,-1491.84,0.0003315,5]
[361847078,1747836648220,-420.0,0.0003315,5]
[361847079,1747836648230,-420.0,0.0003315,5]
[361847080,1747836648240,-420.0,0.0003315,5]
[361847081,1747836648249,-25662.92,0.0003315,5]
[361847082,1747836648259,-420.0,0.0003315,5]
[361847083,1747836648270,-420.0,0.0003315,5]
[361847084,1747836648280,-163.978008,0.0003315,7]
[361847085,1747836648290,-163.978008,0.0003315,7]
[361847086,1747836648300,-163.978008,0.0003315,7]
[361847087,1747836648310,-420.0,0.0003315,5]
[361847088,1747836648320,-163.978008,0.0003315,7]
[361847089,1747836648331,-547.94,0.0003315,5]
[361847090,1747836648341,-163.978008,0.0003315,7]
[361847091,1747836648351,-3094.74,0.0003315,5]
[361847092,1747836648361,-163.978008,0.0003315,7]
[361847093,1747836648371,-163.978008,0.0003315,7]
[361847094,1747836648381,-322.767304,0.0003315,7]
[361847095,1747836648391,-420.0,0.0003315,5]
[361847096,1747836648402,-163.978008,0.0003315,7]
[361847097,1747836648412,-901.5,0.0003315,5]
[361847098,1747836648422,-322.767304,0.0003315,7]
[361847099,1747836648432,-322.767304,0.0003315,7]
[361847100,1747836648442,-2419.37,0.0003315,5]
[361847101,1747836648453,-322.767304,0.0003315,7]
[361847102,1747836648463,-420.0,0.0003315,5]
[361847103,1747836648472,-714.57,0.0003315,5]
[361847104,1747836648482,-322.767304,0.0003315,7]
[361847105,1747836648491,-322.767304,0.0003315,7]
[361847106,1747836648501,-420.0,0.0003315,5]
[361847107,1747836648510,-322.767304,0.0003315,7]
[361847108,1747836648520,-2800.160305,0.0003315,5]
[361847109,1747836648529,-322.767304,0.0003315,7]
[361847110,1747836648539,-3064.81,0.0003315,5]
[361847111,1747836648549,-1597.65,0.0003315,5]
[361847112,1747836648560,-420.0,0.0003315,5]
[361847113,1747836648570,-664.87,0.0003315,2]
[361847114,1747836648580,-353.21682441,0.0003315,5]
[361847115,1747836648589,-2009.74,0.0003315,5]
[361847116,1747836648601,-151.0,0.0003315,7]
[361847117,1747836648610,-151.0,0.0003315,7]
[361847118,1747836648620,-216.709973,0.0003315,7]
[361847119,1747836648631,-420.0,0.0003315,5]
[361847120,1747836648641,-1050.93,0.0003315,5]
[361847121,1747836648651,-518.87,0.0003315,5]
[361847122,1747836648661,-420.0,0.0003315,5]
[361847123,1747836648670,-766.1,0.0003315,5]
[361847124,1747836648681,-420.0,0.0003315,5]
[361847125,1747836648694,-1134.7,0.0003315,5]
[361847126,1747836648704,-50039.22,0.0003315,5]
[361847127,1747836648715,-1760.79,0.0003315,5]
[361847128,1747836648727,-254.36342211,0.0003315,5]
[361847129,1747836648737,-151.0,0.0003315,7]
[361847130,1747836648747,-151.0,0.0003315,7]
[361847131,1747836648756,-151.0,0.0003315,7]
[361847132,1747836648767,-151.0,0.0003315,7]
[361847133,1747836648777,-420.0,0.0003315,5]
[361847134,1747836648787,-420.0,0.0003315,5]
[361847135,1747836648797,-420.0,0.0003315,5]
[361847136,1747836648808,-2613.17,0.0003315,5]
[361847137,1747836648819,-151.0,0.0003315,7]
[361847138,1747836648829,-273.23399,0.0003315,7]
[361847139,1747836648839,-1933.73,0.0003315,5]
[361847140,1747836648849,-852.36,0.0003315,5]
[361847141,1747836648860,-874.66,0.0003315,5]
[361847142,1747836648871,-151.0,0.0003315,7]
[361847143,1747836648883,-151.0,0.0003315,7]
[361847144,1747836648894,-151.0,0.0003315,7]
[361847145,1747836648904,-420.0,0.0003315,5]
[361847146,1747836648915,-151.0,0.0003315,7]
[361847147,1747836648925,-420.0,0.0003315,5]
[361847148,1747836648935,-420.0,0.0003315,5]
[361847149,1747836648946,-420.0,0.0003315,5]
[361847150,1747836648956,-702.63,0.0003315,5]
[361847151,1747836648966,-420.0,0.0003315,5]
[361847152,1747836648977,-420.0,0.0003315,5]
[361847153,1747836648987,-420.0,0.0003315,5]
[361847154,1747836648998,-420.0,0.0003315,5]
[361847155,1747836649009,-2468.83,0.0003315,5]
[361847156,1747836649019,-488.92,0.0003315,5]
[361847157,1747836649029,-1177.05,0.0003315,5]
[361847158,1747836649039,-420.0,0.0003315,5]
[361847159,1747836649049,-1632.91,0.0003315,5]
[361847160,1747836649059,-420.0,0.0003315,5]
[361847161,1747836649069,-1632.5,0.0003315,5]
[361847162,1747836649079,-432.92,0.0003315,5]
[361847163,1747836649089,-2183.69,0.0003315,5]
[361847164,1747836649099,-893.33,0.0003315,5]
[361847165,1747836649109,-464.92,0.0003315,5]
[361847166,1747836649119,-420.0,0.0003315,5]
[361847167,1747836649129,-444.72484873,0.0003315,5]
[361847168,1747836649141,-3552.2,0.0003315,5]
[361847169,1747836649151,-465.16351827,0.0003315,5]
[361847170,1747836649161,-462.22,0.0003315,5]
[361847171,1747836649171,-420.0,0.0003315,5]
[361847172,1747836649181,-420.0,0.0003315,2]
[361847173,1747836649192,-161.29,0.0003315,5]
[361847174,1747836649202,-420.0,0.0003315,5]
[361847175,1747836649212,-420.0,0.0003315,5]
[361847176,1747836649221,-489.91,0.0003315,5]
[361847177,1747836649231,-420.0,0.0003315,5]
[361847178,1747836649241,-732.08,0.0003315,5]
[361847179,1747836649252,-420.0,0.0003315,5]
[361847180,1747836649264,-558.90462151,0.0003315,5]
[361847181,1747836649276,-420.0,0.0003315,5]
[361847182,1747836649286,-449.200565,0.0003315,7]
[361847183,1747836649296,-449.200565,0.0003315,7]
[361847184,1747836649307,-449.200565,0.0003315,7]
[361847185,1747836649317,-420.0,0.0003315,5]
[361847186,1747836649326,-449.200565,0.0003315,7]
[361847187,1747836649336,-420.0,0.0003315,5]
[361847188,1747836649346,-491.05,0.0003315,5]
[361847189,1747836649356,-1507.3,0.0003315,5]
[361847190,1747836649366,-1938.240261,0.0003315,7]
[361847191,1747836649377,-1938.240261,0.0003315,7]
[361847192,1747836649387,-449.200565,0.0003315,7]
[361847193,1747836649397,-1938.240261,0.0003315,7]
[361847194,1747836649407,-553.14,0.0003315,5]
[361847195,1747836649417,-449.200565,0.0003315,7]
[361847196,1747836649427,-1938.240261,0.0003315,7]
[361847197,1747836649437,-449.200565,0.0003315,7]
[361847198,1747836649447,-678.27,0.0003315,5]
[361847199,1747836649456,-449.200565,0.0003315,7]
[361847200,1747836649467,-837.63,0.0003315,5]
[361847201,1747836649476,-420.0,0.0003315,5]
[361847202,1747836649486,-420.0,0.0003315,5]
[361847203,1747836649496,-1938.240261,0.0003315,7]
[361847204,1747836649506,-1938.240261,0.0003315,7]
[361847205,1747836649515,-420.0,0.0003315,5]
[361847206,1747836649525,-1938.240261,0.0003315,7]
[361847207,1747836649535,-1938.240261,0.0003315,7]
[361847208,1747836649545,-420.0,0.0003315,5]
[361847209,1747836649556,-1454.47,0.0003315,5]
[361847210,1747836649566,-3134.94,0.0003315,5]
[361847211,1747836649575,-420.0,0.0003315,5]
[361847212,1747836649585,-6057.23,0.0003315,5]
[361847213,1747836649595,-864.47,0.0003315,5]
[361847214,1747836649604,-2118.8,0.0003315,5]
[361847215,1747836649614,-420.0,0.0003315,5]
[361847216,1747836649623,-509.04,0.0003315,5]
[361847217,1747836649634,-151.0,0.00033154,7]
[361847218,1747836649644,-500.0,0.00033177,5]
[361847219,1747836649654,-203.2595986,0.00033194,28]
[361847220,1747836649664,-500.0,0.00033204,5]
[361847221,1747836649674,-304.52,0.00033205,2]
[361847222,1747836649687,-200.0,0.00033205,2]
[361847223,1747836649698,-500.0,0.00033232,5]
[361847224,1747836649708,-5897.90548516,0.00033255,2]
[361847225,1747836649718,-500.0,0.00033259,5]
[361847226,1747836649728,-500.0,0.00033286,5]
[361847227,1747836649739,-500.0,0.000333,15]
[361847228,1747836649748,-208.0,0.00033312,7]
[361847229,1747836649759,-500.0,0.00033314,5]
[361847230,1747836649769,-395.0,0.00033341,5]
[361847231,1747836649778,-1573.42081415,0.00033376,2]
[361847232,1747836649790,-151.0,0.00033414,7]
[361847233,1747836649799,-500.0,0.0003342,5]
[361847234,1747836649809,-500.0,0.00033423,5]
[361847235,1747836649819,-666.0,0.00033423,10]
[361847236,1747836649829,-666.0,0.00033423,10]
[361847237,1747836649839,-666.0,0.00033423,10]
[361847238,1747836649850,-420.0,0.00033424,5]
[361847239,1747836649860,-426.53,0.00033424,5]
[361847240,1747836649871,-420.0,0.00033424,5]
[361847241,1747836649881,-471.99,0.00033424,5]
[361847242,1747836649892,-420.0,0.00033424,5]
[361847243,1747836649902,-739.24,0.00033424,5]
[361847244,1747836649912,-420.0,0.00033424,5]
[361847245,1747836649922,-420.0,0.00033424,5]
[361847246,1747836649932,-420.0,0.00033424,5]
[361847247,1747836649942,-494.18,0.00033424,5]
[361847248,1747836649952,-420.0,0.00033424,5]
[361847249,1747836649963,-482.61,0.00033424,5]
[361847250,1747836649974,-420.0,0.00033424,5]
[361847251,1747836649984,-420.0,0.00033424,5]
[361847252,1747836649994,-420.0,0.00033424,5]
[361847253,1747836650004,-420.0,0.00033424,5]
[361847254,1747836650013,-527.26,0.00033424,5]
[361847255,1747836650023,-635.46,0.00033424,5]
[361847256,1747836650033,-449.59,0.00033424,5]
[361847257,1747836650044,-590.14,0.00033424,5]
[361847258,1747836650054,-420.0,0.00033424,5]
[361847259,1747836650063,-420.0,0.00033424,5]
[361847260,1747836650073,-420.0,0.00033424,5]
[361847261,1747836650084,-420.0,0.00033424,5]
[361847262,1747836650094,-420.0,0.00033424,5]
[361847263,1747836650104,-420.0,0.00033424,5]
[361847264,1747836650114,-257.54594041,0.00033424,5]
[361847265,1747836650124,-959.81,0.00033424,5]
[361847266,1747836650134,-420.0,0.00033424,5]
[361847267,1747836650144,-462.96,0.00033424,5]
[361847268,1747836650154,-856.1,0.00033424,5]
[361847269,1747836650164,-494.91,0.00033424,5]
[361847270,1747836650174,-420.0,0.00033424,5]
[361847271,1747836650183,-825.48,0.00033424,5]
[361847272,1747836650193,-786.83,0.00033424,5]
[361847273,1747836650203,-420.0,0.00033424,5]
[361847274,1747836650212,-512.82657769,0.00033424,5]
[361847275,1747836650222,-420.0,0.00033424,5]
[361847276,1747836650232,-151.0,0.00033424,7]
[361847277,1747836650241,-151.0,0.00033424,7]
[361847278,1747836650251,-151.0,0.00033424,7]
[361847279,1747836650261,-420.0,0.00033424,5]
[361847280,1747836650271,-151.0,0.00033424,7]
[361847281,1747836650280,-151.0,0.00033424,7]
[361847282,1747836650290,-151.0,0.00033424,7]
[361847283,1747836650300,-151.0,0.00033424,7]
[361847284,1747836650310,-186.457943,0.00033424,7]
[361847285,1747836650319,-151.0,0.00033424,7]
[361847286,1747836650328,-151.0,0.00033424,7]
[361847287,1747836650338,-420.0,0.00033424,5]
[361847288,1747836650348,-420.0,0.00033424,5]
[361847289,1747836650358,-420.0,0.00033424,5]
[361847290,1747836650367,-1033.08,0.00033424,5]
[361847291,1747836650377,-420.0,0.00033424,5]
[361847292,1747836650387,-420.0,0.00033424,5]
[361847293,1747836650398,-496.55,0.00033424,5]
[361847294,1747836650407,-420.0,0.00033424,5]
[361847295,1747836650417,-638.79,0.00033424,5]
[361847296,1747836650427,-718.73,0.00033424,5]
[361847297,1747836650437,-420.0,0.00033424,5]
[361847298,1747836650446,-2267.71,0.00033424,5]
[361847299,1747836650456,-420.0,0.00033424,5]
[361847300,1747836650466,-420.0,0.00033424,5]
[361847301,1747836650476,-420.0,0.00033424,5]
[361847302,1747836650486,-420.0,0.00033424,5]
[361847303,1747836650495,-368.18,0.00033424,5]
[361847304,1747836650505,-1000.27,0.00033424,5]
[361847305,1747836650515,-1786.26,0.00033424,5]
[361847306,1747836650593,-3806.3,0.00033424,5]
[361847307,1747836650604,-420.0,0.00033424,5]
[361847308,1747836650614,-647.78,0.00033424,5]
[361847309,1747836650623,-698.57,0.00033424,5]
[361847310,1747836650633,-679.46,0.00033424,5]
[361847311,1747836650645,-664.28,0.00033424,5]
[361847312,1747836650654,-420.0,0.00033424,5]
[361847313,1747836650664,-420.0,0.00033424,5]
[361847314,1747836650675,-461.72,0.00033424,5]
[361847315,1747836650695,-669.62,0.00033424,5]
[361847316,1747836650706,-420.0,0.00033424,5]
[361847317,1747836650716,-789.03,0.00033424,5]
[361847318,1747836650729,-2851.39,0.00033424,5]
[361847319,1747836650740,-420.0,0.00033424,5]
[361847320,1747836650750,-2183.74,0.00033424,5]
[361847321,1747836650762,-1052.79,0.00033424,5]
[361847322,1747836650774,-448.0,0.00033424,5]
[361847323,1747836650784,-420.0,0.00033424,5]
[361847324,1747836650795,-420.0,0.00033424,5]
[361847325,1747836650805,-420.0,0.00033424,5]
[361847326,1747836650814,-420.0,0.00033424,5]
[361847327,1747836650824,-499.68,0.00033424,5]
[361847328,1747836650833,-420.0,0.00033424,5]
[361847329,1747836650843,-420.0,0.00033424,5]
[361847330,1747836650852,-1301.47,0.00033424,5]
[361847331,1747836650862,-947.9,0.00033424,5]
[361847332,1747836650872,-420.0,0.00033424,5]
[361847333,1747836650881,-829.66,0.00033424,5]
[361847334,1747836650896,-2151.33,0.00033424,5]
[361847335,1747836650906,-1015.15,0.00033424,5]
[361847336,1747836650916,-1572.65,0.00033424,5]
[361847337,1747836650926,-1650.25,0.00033424,5]
[361847338,1747836650935,-792.05,0.00033424,5]
[361847339,1747836650945,-420.0,0.00033424,5]
[361847340,1747836650954,-420.0,0.00033424,5]
[361847341,1747836650964,-420.0,0.00033424,5]
[361847342,1747836650974,-189.71803013,0.00033424,5]
[361847343,1747836650984,-420.0,0.00033424,5]
[361847344,1747836650994,-420.0,0.00033424,5]
[361847345,1747836651003,-1166.66,0.00033424,5]
[361847346,1747836651013,-235.84327279,0.00033424,5]
[361847347,1747836651023,-420.0,0.00033424,5]
[361847348,1747836651032,-420.0,0.00033424,5]